[Event "VII Cape Verde Championship 2023"]
[Site "Ponta do Sol"]
[Date "2023.12.06"]
[Round "4.1"]
[White "Alho, Diogo"]
[Black "Monteiro, Antonio David Cabral"]
[Result "1-0"]
[ECO "A49"]
[WhiteElo "2233"]
[BlackElo "1801"]
[Annotator "RC"]
[PlyCount "63"]
[EventDate "2023.11.30"]
[EventType "tourn"]
[EventCountry "KAP"]
[SourceTitle "playchess.com"]
[Source "ChessBase"]
[SourceQuality "1"]
[TimeControl "40/5400+30:1800+30"]

1. Nf3 {[%emt 0:00:26]} Nf6 {[%emt 0:00:30]} 2. g3 {[%emt 0:01:00]} d6 {[%emt 0:02:11]} 3. Bg2 {[%emt 0:00:11]} g6 {[%emt 0:00:36]} 4. O-O {[%emt 0:00:46]} Bg7 {[%emt 0:00:28]} 5. d4 {[%emt 0:00:13]} O-O {[%emt 0:00:38]} 6. a4 {[%emt 0:00:08]} Nbd7 {[%emt 0:02:41]} 7. a5 {[%emt 0:00:30]} e5 {[%emt 0:01:26]} 8. a6 {[%emt 0:01:26]} e4 {[%emt 0:04:02]} 9. Ng5 {[%emt 0:03:26]} d5 {[%emt 0:05:30]} 10. c4 {[%emt 0:00:16]} h6 {[%emt 0:01:06]} 11. Nh3 {[%emt 0:06:14]} c6 {[%emt 0:02:41]} 12. axb7 {[%emt 0:02:46]} Bxb7 {[%emt 0:00:19]} 13. Nc3 {[%emt 0:01:33]} g5 {[%emt 0:01:37]} 14. c5 {[%emt 0:05:48]} Qe7 {[%emt 0:03:45]} 15. b4 {[%emt 0:01:54]} Ng4 {[%emt 0:03:02]} 16. e3 {[%emt 0:09:51]} f5 {[%emt 0:01:55]} 17. b5 {[%emt 0:01:50]} Qf6 {[%emt 0:03:15]} 18. Ra3 {[%emt 0:06:12]} h5 {[%emt 0:02:57]} 19. f3 {[%emt 0:06:44]} exf3 {[%emt 0:02:50]} 20. Bxf3 {[%emt 0:02:55]} Nxh2 {[%emt 0:04:24]} 21. Kxh2 {[%emt 0:00:25]} g4 {[%emt 0:00:49]} 22. bxc6 {[%emt 0:46:56]} Bxc6 {[%emt 0:07:44]} 23. Bxd5+ {[%emt 0:00:00]} Bxd5 {[%emt 0:00:09]} 24. Nxd5 {[%emt 0:00:00]} Qd8 {[%emt 0:02:17]} 25. Nhf4 {[%emt 0:00:00]} h4 {[%emt 0:01:26]} 26. Ne6 {[%emt 0:00:00]} hxg3+ {[%emt 0:01:55]} 27. Kg2 {[%emt 0:00:00]} Qe8 {[%emt 0:01:45]} 28. Ndc7 {[%emt 0:00:00]} Qe7 {[%emt 0:02:59]} 29. Qb3 {[%emt 0:00:00]} Rab8 {[%emt 0:01:50]} 30. Qd5 {[%emt 0:00:00]} Rf7 {[%emt 0:04:31]} 31. e4 {[%emt 0:00:00]} fxe4 {[%emt 0:04:10]} 32. Ng5 {[%emt 0:00:00]} 1-0

[Event "VII Cape Verde Championship 2023"]
[Site "Ponta do Sol"]
[Date "2023.12.05"]
[Round "4.2"]
[White "Teixeira, Gil"]
[Black "Silva, Bryan Jorge"]
[Result "1-0"]
[ECO "B50"]
[WhiteElo "1820"]
[BlackElo "1586"]
[Annotator "NA RC"]
[PlyCount "91"]
[EventDate "2023.11.30"]
[EventType "tourn"]
[EventCountry "KAP"]
[SourceTitle "playchess.com"]
[Source "ChessBase"]
[SourceQuality "1"]
[TimeControl "40/5400+30:1800+30"]

1. e4 {[%emt 0:00:13]} c5 {[%emt 0:00:05]} 2. Bc4 {[%emt 0:00:07]} d6 {[%emt 0:00:23]} 3. Nf3 {[%emt 0:00:33]} Nf6 {[%emt 0:00:23]} 4. d3 {[%emt 0:00:32]} a6 {[%emt 0:00:33]} 5. a3 {[%emt 0:00:25]} e6 {[%emt 0:00:14]} 6. Nc3 {[%emt 0:00:19]} Be7 {[%emt 0:00:29]} 7. Ba2 {[%emt 0:00:51]} Nbd7 {[%emt 0:00:39]} 8. Bf4 {[%emt 0:00:18]} b5 {[%emt 0:00:47]} 9. O-O {[%emt 0:00:16]} O-O {[%emt 0:00:06]} 10. h3 {[%emt 0:00:14]} Bb7 {[%emt 0:00:21]} 11. Rb1 {[%emt 0:00:32]} Rc8 {[%emt 0:01:16]} 12. Qe2 {[%emt 0:00:54]} Re8 {[%emt 0:05:06]} 13. Bg3 {[%emt 0:00:36]} h6 {[%emt 0:00:56]} 14. Nh2 {[%emt 0:00:29]} Nb8 {[%emt 0:02:51]} 15. f4 {[%emt 0:00:24]} Nc6 {[%emt 0:08:50]} 16. Nf3 {[%emt 0:02:20]} Bf8 {[%emt 0:12:29]} 17. Bh4 {[%emt 0:03:46]} e5 {[%emt 0:01:49]} 18. Nd5 {[%emt 0:01:07]} Be7 {[%emt 0:01:16]} 19. Nxe7+ {[%emt 0:00:52]} Qxe7 {[%emt 0:00:01]} 20. fxe5 {[%emt 0:01:26]} dxe5 {[%emt 0:00:58]} 21. Nh2 {[%emt 0:00:22]} Nd4 {[%emt 0:09:28]} 22. Qd1 {[%emt 0:00:37]} c4 {[%emt 0:01:35]} 23. Ng4 {[%emt 1:24:47]} Kf8 {[%emt 0:07:16]} 24. Bxf6 {[%emt 0:00:00]} gxf6 {[%emt 0:04:06]} 25. Nxf6 {[%emt 0:00:00]} Qc5 {[%emt 0:00:39]} 26. Kh1 {[%emt 0:00:00]} Red8 {[%emt 0:01:39]} 27. Qh5 {[%emt 0:00:00]} Ke7 {[%emt 0:06:45]} 28. Qh4 {[%emt 0:00:00]} Kd6 {[%emt 0:01:25]} 29. Nh7 {[%emt 0:00:00]} Rd7 {[%emt 0:02:11]} 30. Qxh6+ {[%emt 0:00:00]} Kc7 {[%emt 0:00:18]} 31. Nf6 {[%emt 0:00:00]} Re7 {[%emt 0:00:17]} 32. Qe3 {[%emt 0:00:00]} Qd6 {[%emt 0:00:53]} 33. dxc4 {[%emt 0:00:00]} Qe6 {[%emt 0:01:28]} 34. Nd5+ {[%emt 0:00:00]} Bxd5 {[%emt 0:00:48]} 35. cxd5 {[%emt 0:00:00]} Qg6 {[%emt 0:00:36]} 36. c3 {[%emt 0:00:00]} Rg8 {[%emt 0:00:26]} 37. Rf2 {[%emt 0:00:00]} Kb7 {[%emt 0:01:42]} 38. cxd4 {[%emt 0:00:00]} exd4 {[%emt 0:00:15]} 39. Qxd4 {[%emt 0:00:00]} Rxe4 $18 {[%emt 0:00:14]} 40. Qf6 {[%emt 0:00:00]} Qg3 {[%emt 0:00:59]} 41. Qxf7+ {[%emt 0:00:00]} Ka8 {[%emt 0:30:27]} 42. Qf3 {[%emt 0:00:00]} Qg6 {[%emt 0:00:48]} 43. d6 {[%emt 0:00:00]} Rge8 {[%emt 0:01:39]} 44. Bd5+ {[%emt 0:00:00]} Kb8 {[%emt 0:00:13]} 45. Bxe4 {[%emt 0:00:00]} Rxe4 {[%emt 0:00:38]} 46. Rd1 {[%emt 0:00:00]} 1-0

[Event "VII Cape Verde Championship 2023"]
[Site "Ponta do Sol"]
[Date "2023.12.06"]
[Round "4.3"]
[White "Vaz, Jose Carlos"]
[Black "Ortega Amarelle, Mariano"]
[Result "0-1"]
[ECO "B22"]
[WhiteElo "1833"]
[BlackElo "2478"]
[Annotator "RC"]
[PlyCount "81"]
[EventDate "2023.11.30"]
[EventType "tourn"]
[EventCountry "KAP"]
[SourceTitle "playchess.com"]
[Source "ChessBase"]
[SourceQuality "1"]
[TimeControl "40/5400+30:1800+30"]

1. e4 {[%emt 1:31:00]} c5 2. Nf3 {[%emt 0:00:00]} e6 {[%emt 0:03:13]} 3. c3 {[%emt 0:00:00]} Nf6 {[%emt 0:00:23]} 4. e5 {[%emt 0:00:00]} Nd5 {[%emt 0:00:11]} 5. d4 {[%emt 0:00:00]} cxd4 {[%emt 0:00:30]} 6. cxd4 {[%emt 0:00:00]} d6 {[%emt 0:00:30]} 7. Bd3 {[%emt 0:00:00]} Bd7 {[%emt 0:01:29]} 8. O-O {[%emt 0:00:00]} Bc6 {[%emt 0:00:04]} 9. Ng5 {[%emt 0:00:00]} dxe5 {[%emt 0:01:16]} 10. dxe5 {[%emt 0:00:00]} Nb4 {[%emt 0:03:06]} 11. Bxh7 {[%emt 0:00:00]} Qxd1 {[%emt 0:35:34]} 12. Rxd1 {[%emt 0:00:00]} Nd7 {[%emt 0:02:26]} 13. a3 {[%emt 0:00:00]} Nd5 {[%emt 0:00:18]} 14. f4 {[%emt 0:00:00]} Bc5+ {[%emt 0:13:57]} 15. Kh1 {[%emt 0:00:00]} g6 {[%emt 0:00:34]} 16. Bxg6 {[%emt 0:00:00]} fxg6 {[%emt 0:00:12]} 17. Nxe6 {[%emt 0:00:00]} Ke7 {[%emt 0:00:50]} 18. Nxc5 {[%emt 0:00:00]} Nxc5 {[%emt 0:00:07]} 19. Nc3 {[%emt 0:00:00]} Nxc3 {[%emt 0:07:58]} 20. bxc3 {[%emt 0:00:00]} Rh3 {[%emt 0:04:28]} 21. Kg1 {[%emt 0:00:00]} Rxc3 {[%emt 0:00:14]} 22. Bd2 {[%emt 0:00:00]} Rc2 {[%emt 0:00:54]} 23. Rac1 {[%emt 0:00:00]} Rxc1 {[%emt 0:01:36]} 24. Rxc1 {[%emt 0:00:00]} Ne4 {[%emt 0:04:47]} 25. Bb4+ {[%emt 0:00:00]} Ke6 {[%emt 0:00:06]} 26. Rd1 {[%emt 0:00:00]} Kf5 {[%emt 0:03:43]} 27. g3 {[%emt 0:00:00]} g5 {[%emt 0:00:28]} 28. fxg5 {[%emt 0:00:00]} Nxg5 {[%emt 0:00:14]} 29. Bd6 {[%emt 0:00:00]} Nf3+ {[%emt 0:00:43]} 30. Kf2 {[%emt 0:00:00]} Nxh2 {[%emt 0:00:23]} 31. Ke3 {[%emt 0:00:00]} Re8 {[%emt 0:01:42]} 32. Kd3 {[%emt 0:00:00]} Nf3 {[%emt 0:01:32]} 33. Kc3 {[%emt 0:00:00]} Nxe5 {[%emt 0:01:16]} 34. Bc5 {[%emt 0:00:00]} a6 {[%emt 0:00:15]} 35. Rd4 {[%emt 0:00:00]} Be4 {[%emt 0:00:38]} 36. Bd6 {[%emt 0:00:00]} Rc8+ {[%emt 0:02:07]} 37. Kb3 {[%emt 0:00:00]} Rc1 {[%emt 0:00:36]} 38. Bxe5 {[%emt 0:00:00]} Kxe5 {[%emt 0:00:09]} 39. Rd7 {[%emt 0:00:00]} Bd5+ {[%emt 0:00:42]} 40. Kb2 {[%emt 0:00:00]} Rg1 {[%emt 0:00:12]} 41. Rg7 {[%emt 0:07:25]} 0-1

[Event "VII Cape Verde Championship 2023"]
[Site "Ponta do Sol"]
[Date "2023.12.06"]
[Round "4.4"]
[White "Rodriguez Guevara, Celia M."]
[Black "Mirulla, David"]
[Result "1/2-1/2"]
[ECO "C50"]
[WhiteElo "1746"]
[BlackElo "1929"]
[Annotator "RC"]
[PlyCount "89"]
[EventDate "2023.11.30"]
[EventType "tourn"]
[EventCountry "KAP"]
[SourceTitle "playchess.com"]
[Source "ChessBase"]
[SourceQuality "1"]
[TimeControl "40/5400+30:1800+30"]

1. e4 {[%emt 0:00:12]} e5 {[%emt 0:01:02]} 2. Nf3 {[%emt 0:00:12]} Nc6 {[%emt 0:00:58]} 3. Bc4 {[%emt 0:00:10]} Bc5 {[%emt 0:05:47]} 4. O-O {[%emt 0:00:17]} Nf6 {[%emt 0:02:17]} 5. d4 Bxd4 {[%emt 0:01:39]} 6. Nxd4 {[%emt 0:17:01]} Nxd4 {[%emt 0:01:11]} 7. f4 {[%emt 0:11:39]} d6 {[%emt 0:08:15]} 8. fxe5 {[%emt 0:03:16]} dxe5 {[%emt 0:00:18]} 9. Bg5 {[%emt 0:00:57]} Be6 {[%emt 0:17:22]} 10. Bxe6 {[%emt 0:10:19]} Nxe6 {[%emt 0:00:10]} 11. Bxf6 {[%emt 0:06:18]} Qxd1 {[%emt 0:01:50]} 12. Rxd1 {[%emt 0:00:10]} gxf6 {[%emt 0:00:06]} 13. Nc3 {[%emt 0:01:14]} c6 {[%emt 0:02:18]} 14. Ne2 {[%emt 0:06:17]} Rg8 {[%emt 0:05:34]} 15. Kf2 {[%emt 0:04:59]} Rd8 {[%emt 0:01:52]} 16. Ng3 {[%emt 0:03:27]} Nf4 {[%emt 0:04:53]} 17. Kf3 {[%emt 0:00:35]} h5 {[%emt 0:15:52]} 18. Rxd8+ {[%emt 0:03:12]} Kxd8 {[%emt 0:00:11]} 19. Rd1+ {[%emt 0:00:18]} Kc7 {[%emt 0:00:41]} 20. Rd2 {[%emt 0:00:30]} Rd8 {[%emt 0:03:43]} 21. Rxd8 {[%emt 0:02:56]} Kxd8 {[%emt 0:00:08]} 22. Nf5 {[%emt 0:00:06]} Kd7 {[%emt 0:00:51]} 23. Ng7 {[%emt 0:03:25]} h4 {[%emt 0:03:48]} 24. Nf5 {[%emt 0:00:42]} h3 {[%emt 0:00:37]} 25. g3 {[%emt 0:00:19]} Ne6 {[%emt 0:00:33]} 26. g4 {[%emt 0:10:41]} Ng5+ {[%emt 0:01:58]} 27. Kg3 {[%emt 0:00:41]} Kc7 {[%emt 0:02:56]} 28. Nh6 {[%emt 0:00:41]} Kd6 {[%emt 0:00:33]} 29. Ng8 {[%emt 0:00:55]} Ke6 {[%emt 0:00:56]} 30. Nh6 {[%emt 0:00:12]} b6 {[%emt 0:03:21]} 31. Nf5 {[%emt 0:00:21]} a5 {[%emt 0:00:36]} 32. Kh4 {[%emt 0:07:25]} b5 {[%emt 0:01:15]} 33. Ng3 {[%emt 0:00:50]} a4 {[%emt 0:03:35]} 34. a3 {[%emt 0:02:31]} c5 {[%emt 0:01:35]} 35. Kh5 {[%emt 0:00:03]} b4 {[%emt 0:01:18]} 36. Kh6 {[%emt 0:00:23]} bxa3 {[%emt 0:01:18]} 37. bxa3 {[%emt 0:00:02]} Nf3 {[%emt 0:00:50]} 38. Nf1 {[%emt 0:00:17]} c4 {[%emt 0:01:39]} 39. c3 {[%emt 0:01:00]} Ke7 {[%emt 0:02:00]} 40. Kg7 {[%emt 0:00:24]} Ng5 {[%emt 0:01:57]} 41. Ng3 {[%emt 0:30:54]} Ne6+ {[%emt 0:02:51]} 42. Kh6 {[%emt 0:00:00]} Ng5 {[%emt 0:01:27]} 43. Kg7 {[%emt 0:00:00]} Ne6+ {[%emt 0:00:31]} 44. Kh6 {[%emt 0:00:00]} Ng5 {[%emt 0:29:58]} 45. Kg7 {[%emt 0:00:00]} 1/2-1/2

[Event "VII Cape Verde Championship 2023"]
[Site "Ponta do Sol"]
[Date "2023.12.06"]
[Round "4.5"]
[White "Santos, Kelim Morais"]
[Black "Barros, Luis"]
[Result "0-1"]
[ECO "B21"]
[WhiteElo "1436"]
[BlackElo "1656"]
[Annotator "NA RC"]
[PlyCount "128"]
[EventDate "2023.11.30"]
[EventType "tourn"]
[EventCountry "KAP"]
[SourceTitle "playchess.com"]
[Source "ChessBase"]
[SourceQuality "1"]
[TimeControl "40/5400+30:1800+30"]

1. e4 {[%emt 0:01:28]} c5 {[%emt 0:00:16]} 2. d4 {[%emt 0:00:15]} cxd4 {[%emt 0:00:32]} 3. Qxd4 {[%emt 0:00:13]} Nc6 {[%emt 0:00:11]} 4. Qd1 {[%emt 0:01:26]} Nf6 {[%emt 0:01:33]} 5. Nc3 {[%emt 0:00:16]} g6 {[%emt 0:01:12]} 6. Nf3 {[%emt 0:00:47]} d6 {[%emt 0:00:59]} 7. Bb5 {[%emt 0:00:40]} a6 {[%emt 0:01:05]} 8. Bxc6+ {[%emt 0:00:59]} bxc6 {[%emt 0:00:10]} 9. e5 {[%emt 0:00:44]} Nd7 {[%emt 0:01:18]} 10. Bf4 {[%emt 0:01:15]} d5 {[%emt 0:00:25]} 11. O-O {[%emt 0:05:06]} Bg7 {[%emt 0:00:38]} 12. Re1 {[%emt 0:00:40]} O-O {[%emt 0:00:59]} 13. Qd2 {[%emt 0:02:31]} e6 {[%emt 0:01:17]} 14. b4 {[%emt 0:02:30]} Nb6 {[%emt 0:01:53]} 15. Bg5 {[%emt 0:04:56]} f6 {[%emt 0:00:52]} 16. Bxf6 {[%emt 0:03:32]} Bxf6 {[%emt 0:00:21]} 17. exf6 {[%emt 0:00:39]} Qxf6 {[%emt 0:00:47]} 18. Qd4 {[%emt 0:10:31]} Nc4 {[%emt 0:01:40]} 19. Qxf6 {[%emt 0:01:24]} Rxf6 {[%emt 0:00:15]} 20. Nd4 {[%emt 0:04:11]} Bd7 {[%emt 0:00:37]} 21. Na4 {[%emt 0:02:32]} e5 {[%emt 0:04:15]} 22. Nc5 {[%emt 0:01:10]} Bg4 {[%emt 0:01:11]} 23. f3 {[%emt 0:00:28]} Bc8 {[%emt 0:01:40]} 24. Ndb3 {[%emt 0:04:26]} d4 {[%emt 0:02:21]} 25. Nd3 {[%emt 0:04:57]} Ne3 {[%emt 0:00:41]} 26. Rac1 {[%emt 0:00:30]} Bf5 {[%emt 0:05:59]} 27. Nbc5 {[%emt 0:08:25]} a5 {[%emt 0:00:34]} 28. a3 {[%emt 0:00:59]} axb4 {[%emt 0:00:16]} 29. Nxb4 {[%emt 0:00:58]} Rxa3 {[%emt 0:00:53]} 30. Ne4 {[%emt 0:03:43]} Bxe4 {[%emt 0:00:38]} 31. fxe4 {[%emt 0:02:00]} Rc3 {[%emt 0:01:38]} 32. Nd3 {[%emt 0:04:11]} Re6 {[%emt 0:01:10]} 33. Re2 {[%emt 0:00:47]} c5 {[%emt 0:00:33]} 34. Rf2 {[%emt 0:01:43]} Ng4 {[%emt 0:02:07]} 35. Rf3 {[%emt 0:00:28]} Nf6 {[%emt 0:01:48]} 36. Nf2 {[%emt 0:00:12]} Rc4 {[%emt 0:03:08]} 37. c3 {[%emt 0:02:21]} Rd6 {[%emt 0:01:49]} 38. Rd3 {[%emt 0:00:34]} Nh5 {[%emt 0:01:19]} 39. g3 {[%emt 0:00:13]} Nf6 {[%emt 0:00:37]} 40. h3 {[%emt 0:01:19]} h5 {[%emt 0:01:18]} 41. Kg2 {[%emt 0:30:23]} Rb6 {[%emt 0:30:39]} 42. Rf3 {[%emt 0:00:31]} Kg7 {[%emt 0:00:38]} 43. h4 {[%emt 0:04:45]} Rb2 {[%emt 0:00:17]} 44. Kg1 {[%emt 0:00:45]} Rb3 {[%emt 0:02:55]} 45. Ra1 {[%emt 0:01:13]} Rb7 {[%emt 0:01:55]} 46. cxd4 {[%emt 0:00:39]} Rxd4 {[%emt 0:01:39]} 47. Rd3 {[%emt 0:04:13]} c4 {[%emt 0:00:53]} 48. Rc3 {[%emt 0:06:12]} Nxe4 {[%emt 0:00:42]} 49. Nxe4 {[%emt 0:00:23]} Rxe4 {[%emt 0:00:11]} 50. Kf2 {[%emt 0:01:26]} Rf7+ {[%emt 0:01:27]} 51. Rf3 {[%emt 0:00:34]} Rxf3+ {[%emt 0:01:19]} 52. Kxf3 {[%emt 0:00:46]} Rd4 {[%emt 0:00:12]} 53. Ra7+ {[%emt 0:07:51]} Kf6 {[%emt 0:00:20]} 54. Rc7 {[%emt 0:00:18]} Rd3+ {[%emt 0:00:58]} 55. Ke4 {[%emt 0:00:00]} Rd4+ {[%emt 0:00:00]} 56. Ke3 {[%emt 0:00:00]} Rg4 {[%emt 0:00:00]} 57. Kf3 {[%emt 0:00:00]} Ke6 {[%emt 0:00:00]} 58. Rc8 {[%emt 0:00:00]} Kd5 {[%emt 0:00:00]} 59. Rd8+ {[%emt 0:00:00]} Kc5 {[%emt 0:00:00]} 60. Rc8+ {[%emt 0:00:00]} Kd4 {[%emt 0:00:00]} 61. Rd8+ {[%emt 0:00:00]} Kc3 {[%emt 0:00:00]} 62. Rd7 {[%emt 0:00:00]} Rd4 {[%emt 0:00:00]} 63. Ra7 {[%emt 0:00:00]} Kd3 {[%emt 0:00:00]} 64. Re7 {[%emt 0:00:00]} e4+ {[%emt 0:00:00]} 0-1

[Event "VII Cape Verde Championship 2023"]
[Site "Ponta do Sol"]
[Date "2023.12.06"]
[Round "5.1"]
[White "Barros, Luis"]
[Black "Alho, Diogo"]
[Result "0-1"]
[ECO "B06"]
[WhiteElo "1656"]
[BlackElo "2233"]
[Annotator "RC"]
[PlyCount "68"]
[EventDate "2023.11.30"]
[EventType "tourn"]
[EventCountry "KAP"]
[SourceTitle "playchess.com"]
[Source "ChessBase"]
[SourceQuality "1"]
[TimeControl "40/5400+30:1800+30"]

1. e4 {[%emt 0:00:07]} g6 {[%emt 0:00:52]} 2. Nf3 {[%emt 0:00:21]} Bg7 {[%emt 0:00:05]} 3. d4 {[%emt 0:00:29]} d6 {[%emt 0:00:08]} 4. Bc4 {[%emt 0:00:54]} a6 {[%emt 0:00:28]} 5. c3 {[%emt 0:01:19]} e6 {[%emt 0:00:40]} 6. Bg5 {[%emt 0:00:52]} Ne7 {[%emt 0:00:09]} 7. O-O {[%emt 0:02:33]} h6 {[%emt 0:02:58]} 8. Be3 {[%emt 0:00:58]} Nd7 {[%emt 0:02:20]} 9. Re1 {[%emt 0:01:09]} O-O {[%emt 0:02:52]} 10. Nbd2 {[%emt 0:00:25]} Nf6 {[%emt 0:01:20]} 11. Bd3 {[%emt 0:02:53]} b6 {[%emt 0:00:40]} 12. Nf1 {[%emt 0:00:29]} Bb7 {[%emt 0:00:29]} 13. Ng3 {[%emt 0:00:22]} c5 {[%emt 0:02:56]} 14. Qd2 {[%emt 0:00:45]} Ng4 {[%emt 0:00:17]} 15. h3 {[%emt 0:02:45]} Nxe3 {[%emt 0:00:14]} 16. fxe3 {[%emt 0:00:17]} b5 {[%emt 0:03:03]} 17. Rad1 {[%emt 0:01:11]} Qb6 {[%emt 0:01:55]} 18. Bc2 {[%emt 0:01:30]} Rfd8 {[%emt 0:03:01]} 19. b3 {[%emt 0:00:52]} Rac8 {[%emt 0:01:13]} 20. Nh4 {[%emt 0:01:12]} Qa5 {[%emt 0:05:23]} 21. Rf1 {[%emt 0:03:01]} cxd4 {[%emt 0:21:18]} 22. Qf2 {[%emt 0:01:24]} Rf8 {[%emt 0:00:16]} 23. exd4 {[%emt 0:04:53]} Qxc3 {[%emt 0:01:52]} 24. Rd2 {[%emt 0:01:29]} e5 {[%emt 0:05:52]} 25. d5 {[%emt 0:01:26]} Qc5 {[%emt 0:00:10]} 26. Nf3 {[%emt 0:05:19]} h5 {[%emt 0:04:49]} 27. Nh1 {[%emt 0:01:17]} Bh6 {[%emt 0:00:23]} 28. Qxc5 {[%emt 0:00:49]} Rxc5 {[%emt 0:00:06]} 29. Re2 {[%emt 0:00:51]} Rfc8 {[%emt 0:01:07]} 30. Bd1 {[%emt 0:01:04]} Rc3 {[%emt 0:06:16]} 31. Kh2 {[%emt 0:01:58]} Re3 {[%emt 0:00:51]} 32. Ref2 {[%emt 0:06:43]} Rxe4 {[%emt 0:03:08]} 33. Bc2 {[%emt 0:01:44]} Rf4 {[%emt 0:00:50]} 34. g3 {[%emt 0:01:40]} Rxf3 {[%emt 0:00:17]} 0-1

[Event "VII Cape Verde Championship 2023"]
[Site "Ponta do Sol"]
[Date "2023.12.07"]
[Round "5.2"]
[White "Mirulla, David"]
[Black "Santos, Kelim Morais"]
[Result "1-0"]
[ECO "C55"]
[WhiteElo "1929"]
[BlackElo "1436"]
[Annotator "RC"]
[PlyCount "63"]
[EventDate "2023.11.30"]
[EventType "tourn"]
[EventCountry "KAP"]
[SourceTitle "playchess.com"]
[Source "ChessBase"]
[SourceQuality "1"]
[TimeControl "40/5400+30:1800+30"]

1. e4 {[%emt 0:01:53]} e5 {[%emt 0:01:07]} 2. Nf3 {[%emt 0:00:11]} Nc6 {[%emt 0:01:23]} 3. Bc4 {[%emt 0:00:44]} Nf6 {[%emt 0:00:18]} 4. d3 {[%emt 0:06:24]} Be7 {[%emt 0:05:03]} 5. O-O {[%emt 0:01:06]} O-O {[%emt 0:02:02]} 6. Nc3 {[%emt 0:02:53]} Bc5 {[%emt 0:05:47]} 7. a3 {[%emt 0:02:30]} d6 {[%emt 0:07:43]} 8. Na4 {[%emt 0:05:03]} Bb6 {[%emt 0:00:50]} 9. h3 {[%emt 0:06:47]} d5 {[%emt 0:07:35]} 10. Nxb6 {[%emt 0:01:51]} axb6 {[%emt 0:00:23]} 11. exd5 {[%emt 0:00:52]} Nxd5 {[%emt 0:00:32]} 12. Re1 {[%emt 0:02:50]} Re8 {[%emt 0:05:40]} 13. d4 {[%emt 0:05:47]} e4 {[%emt 0:02:43]} 14. Ng5 {[%emt 0:07:13]} Bf5 {[%emt 0:01:37]} 15. f3 {[%emt 0:05:14]} h6 {[%emt 0:03:56]} 16. Nxe4 {[%emt 0:07:38]} Bg6 {[%emt 0:09:57]} 17. Bxh6 {[%emt 0:06:35]} Bxe4 {[%emt 0:03:19]} 18. fxe4 {[%emt 0:00:49]} Nf6 {[%emt 0:06:27]} 19. Be3 {[%emt 0:07:11]} Rxe4 {[%emt 0:01:40]} 20. Bd3 {[%emt 0:03:46]} Re7 {[%emt 0:11:08]} 21. c3 {[%emt 0:00:28]} Qd5 {[%emt 0:02:16]} 22. c4 {[%emt 0:04:07]} Qh5 {[%emt 0:03:51]} 23. Qxh5 {[%emt 0:02:52]} Nxh5 {[%emt 0:00:11]} 24. Bf2 {[%emt 0:00:58]} Rae8 {[%emt 0:02:28]} 25. d5 {[%emt 0:03:13]} Ne5 {[%emt 0:00:40]} 26. Bf1 {[%emt 0:00:35]} Nf4 {[%emt 0:01:05]} 27. Kh2 {[%emt 0:03:58]} Ned3 {[%emt 0:03:50]} 28. Rxe7 {[%emt 0:00:59]} Rxe7 {[%emt 0:00:18]} 29. Bg3 {[%emt 0:00:18]} Re4 {[%emt 0:00:23]} 30. b3 {[%emt 0:03:17]} Nc5 {[%emt 0:00:16]} 31. b4 {[%emt 0:01:11]} g5 {[%emt 0:02:12]} 32. bxc5 {[%emt 0:07:17]} 1-0

[Event "VII Cape Verde Championship 2023"]
[Site "Ponta do Sol"]
[Date "2023.12.06"]
[Round "5.3"]
[White "Ortega Amarelle, Mariano"]
[Black "Rodriguez Guevara, Celia M."]
[Result "1-0"]
[ECO "B78"]
[WhiteElo "2478"]
[BlackElo "1746"]
[Annotator "RC"]
[PlyCount "41"]
[EventDate "2023.11.30"]
[EventType "tourn"]
[EventCountry "KAP"]
[SourceTitle "playchess.com"]
[Source "ChessBase"]
[SourceQuality "1"]
[TimeControl "40/5400+30:1800+30"]

1. e4 {[%emt 0:12:09]} c5 {[%emt 0:00:21]} 2. Nf3 {[%emt 0:00:18]} Nc6 {[%emt 0:00:28]} 3. d4 {[%emt 0:00:36]} cxd4 {[%emt 0:00:25]} 4. Nxd4 {[%emt 0:00:08]} g6 {[%emt 0:00:45]} 5. Nc3 {[%emt 0:02:47]} Bg7 {[%emt 0:00:47]} 6. Be3 {[%emt 0:00:35]} Nf6 {[%emt 0:00:55]} 7. Bc4 {[%emt 0:02:50]} d6 {[%emt 0:01:02]} 8. f3 {[%emt 0:00:19]} Bd7 {[%emt 0:00:55]} 9. Qd2 {[%emt 0:00:20]} O-O {[%emt 0:01:35]} 10. O-O-O {[%emt 0:00:53]} Qa5 {[%emt 0:00:58]} 11. Kb1 {[%emt 0:04:36]} Ne5 {[%emt 0:04:48]} 12. Bb3 {[%emt 0:00:14]} Rac8 {[%emt 0:01:10]} 13. h4 {[%emt 0:04:28]} h5 {[%emt 0:07:07]} 14. Nd5 {[%emt 0:02:04]} Qd8 {[%emt 0:03:09]} 15. Nxf6+ {[%emt 0:00:20]} Bxf6 {[%emt 0:00:22]} 16. g4 {[%emt 0:00:17]} hxg4 {[%emt 0:02:57]} 17. h5 {[%emt 0:00:15]} Nc4 {[%emt 0:02:09]} 18. Qe2 {[%emt 0:19:31]} Nxe3 {[%emt 0:07:22]} 19. hxg6 {[%emt 0:00:26]} Nxd1 {[%emt 0:09:51]} 20. Qh2 {[%emt 0:00:28]} Bxd4 {[%emt 0:02:41]} 21. Qh7# {[%emt 0:00:12]} 1-0